fUST/lending_fUST_20250314
["ID","MTS","AMOUNT","RATE_DAILY","PERIOD"]
[356092125,1741894259058,-500.0,0.0001452,2]
[356092126,1741894259067,-500.0,0.0001452,2]
[356092127,1741894259077,-1390.01,0.0001452,2]
[356092128,1741894259087,-746.51,0.0001452,2]
[356092129,1741894259096,-500.0,0.0001452,2]
[356092130,1741894259106,-500.0,0.0001452,2]
[356092131,1741894259115,-500.0,0.0001452,2]
[356092132,1741894259126,-500.0,0.0001452,2]
[356092133,1741894259135,-500.0,0.0001452,2]
[356092134,1741894259144,-834.06,0.0001452,2]
[356092135,1741894259154,-718.11,0.0001452,2]
[356092136,1741894259163,-500.0,0.0001452,2]
[356092137,1741894259173,-839.92,0.0001452,2]
[356092138,1741894259183,-500.0,0.0001452,2]
[356092139,1741894259192,-500.0,0.0001452,2]
[356092140,1741894259201,-500.0,0.0001452,2]
[356092141,1741894259211,-465.5715001,0.0001452,2]
[356092142,1741894259221,-500.0,0.0001452,2]
[356092143,1741894259230,-500.0,0.0001452,2]
[356092144,1741894259241,-500.0,0.0001452,2]
[356092145,1741894259251,-500.0,0.0001452,2]
[356092146,1741894259260,-500.0,0.0001452,2]
[356092147,1741894259270,-282.853606,0.0001452,2]
[356092148,1741894259280,-500.0,0.0001452,2]
[356092149,1741894259293,-500.0,0.0001452,2]
[356092150,1741894259305,-500.0,0.0001452,2]
[356092151,1741894259314,-500.0,0.0001452,2]
[356092152,1741894259324,-500.0,0.0001452,2]
[356092153,1741894259334,-500.0,0.0001452,2]
[356092154,1741894259345,-519.28851475,0.0001452,2]
[356092155,1741894259354,-500.0,0.0001452,2]
[356092156,1741894259364,-504.73204862,0.0001452,2]
[356092157,1741894259374,-500.0,0.0001452,2]
[356092158,1741894259386,-1030.56,0.0001452,2]
[356092159,1741894259395,-500.0,0.0001452,2]
[356092160,1741894259404,-1760.49,0.0001452,2]
[356092161,1741894259414,-500.0,0.0001452,2]
[356092162,1741894259423,-500.0,0.0001452,2]
[356092163,1741894259432,-500.0,0.0001452,2]
[356092164,1741894259441,-500.0,0.0001452,2]
[356092165,1741894259451,-500.0,0.0001452,2]
[356092166,1741894259459,-500.0,0.0001452,2]
[356092167,1741894259469,-500.0,0.0001452,2]
[356092168,1741894259478,-1000.0,0.0001452,2]
[356092169,1741894259488,-1660.28,0.0001452,2]
[356092170,1741894259497,-500.0,0.0001452,2]
[356092171,1741894259622,-500.0,0.0001452,2]
[356092172,1741894259643,-500.0,0.0001452,2]
[356092173,1741894259652,-802.74,0.0001452,2]
[356092174,1741894259662,-214.34759687,0.0001452,2]
[356092175,1741894259671,-500.0,0.0001452,2]
[356092176,1741894259681,-500.0,0.0001452,2]
[356092177,1741894259690,-238.70755513,0.0001452,2]
[356092178,1741894259699,-500.0,0.0001452,2]
[356092179,1741894259708,-500.0,0.0001452,2]
[356092180,1741894259718,-500.0,0.0001452,2]
[356092181,1741894259727,-500.0,0.0001452,2]
[356092182,1741894259737,-500.0,0.0001452,2]
[356092183,1741894259747,-500.0,0.0001452,2]
[356092184,1741894259756,-500.0,0.0001452,2]
[356092185,1741894259765,-500.0,0.0001452,2]
[356092186,1741894259775,-500.0,0.0001452,2]
[356092187,1741894259784,-500.0,0.0001452,2]
[356092188,1741894259794,-782.58,0.0001452,2]
[356092189,1741894259803,-1228.1,0.0001452,2]
[356092190,1741894259813,-570.85,0.0001452,2]
[356092191,1741894259822,-500.0,0.0001452,2]
[356092192,1741894259832,-500.0,0.0001452,2]
[356092193,1741894259842,-500.0,0.0001452,2]
[356092194,1741894259851,-500.0,0.0001452,2]
[356092195,1741894259860,-500.0,0.0001452,2]
[356092196,1741894259870,-500.0,0.0001452,2]
[356092197,1741894259879,-500.0,0.0001452,2]
[356092198,1741894259888,-500.0,0.0001452,2]
[356092199,1741894259897,-500.0,0.0001452,2]
[356092200,1741894259907,-500.0,0.0001452,2]
[356092201,1741894259916,-500.0,0.0001452,2]
[356092202,1741894259925,-500.0,0.0001452,2]
[356092203,1741894259935,-500.0,0.0001452,2]
[356092204,1741894259944,-500.0,0.0001452,2]
[356092205,1741894259954,-249.9900029,0.0001452,2]
[356092206,1741894259963,-500.0,0.0001452,2]
[356092207,1741894259972,-549.70060848,0.0001452,2]
[356092208,1741894259982,-541.93292018,0.0001452,2]
[356092209,1741894259992,-500.0,0.0001452,2]
[356092210,1741894260004,-500.0,0.0001452,2]
[356092211,1741894260016,-500.0,0.0001452,2]
[356092212,1741894260026,-500.0,0.0001452,2]
[356092213,1741894260037,-500.0,0.0001452,2]
[356092214,1741894260047,-500.0,0.0001452,2]
[356092215,1741894260056,-560.30694323,0.0001452,2]
[356092216,1741894260066,-500.0,0.0001452,2]
[356092217,1741894260077,-1891.38,0.0001452,2]
[356092218,1741894260088,-637.15,0.0001452,2]
[356092219,1741894260098,-500.0,0.0001452,2]
[356092220,1741894260108,-500.0,0.0001452,2]
[356092221,1741894260118,-500.0,0.0001452,2]
[356092222,1741894260127,-726.33,0.0001452,2]
[356092223,1741894260137,-500.0,0.0001452,2]
[356092224,1741894260147,-500.0,0.0001452,2]
[356092225,1741894260157,-474.44828635,0.0001452,2]
[356092226,1741894260166,-500.0,0.0001452,2]
[356092227,1741894260176,-500.0,0.0001452,2]
[356092228,1741894260186,-453.0009464,0.0001452,2]
[356092229,1741894260196,-257.06081072,0.0001452,2]
[356092230,1741894260206,-500.0,0.0001452,2]
[356092231,1741894260216,-500.0,0.0001452,2]
[356092232,1741894260227,-500.0,0.0001452,2]
[356092233,1741894260244,-551.31,0.0001452,2]
[356092234,1741894260266,-500.0,0.0001452,2]
[356092235,1741894260276,-500.0,0.0001452,2]
[356092236,1741894260286,-500.0,0.0001452,2]
[356092237,1741894260298,-500.0,0.0001452,2]
[356092238,1741894260314,-503.86274598,0.0001452,2]
[356092239,1741894260324,-562.00461993,0.0001452,2]
[356092240,1741894260336,-500.0,0.0001452,2]
[356092241,1741894260347,-782.32,0.0001452,2]
[356092242,1741894260356,-893.91,0.0001452,2]
[356092243,1741894260366,-860.11,0.0001452,2]
[356092244,1741894260375,-500.0,0.0001452,2]
[356092245,1741894260386,-500.0,0.0001452,2]
[356092246,1741894260396,-500.0,0.0001452,2]
[356092247,1741894260406,-730.06,0.0001452,2]
[356092248,1741894260416,-169.999599,0.0001452,2]
[356092249,1741894260426,-169.999599,0.0001452,2]
[356092250,1741894260435,-169.999599,0.0001452,2]
[356092251,1741894260445,-169.999599,0.0001452,2]
[356092252,1741894260455,-500.0,0.0001452,2]
[356092253,1741894260464,-500.0,0.0001452,2]
[356092254,1741894260474,-500.0,0.0001452,2]
[356092255,1741894260492,-500.0,0.0001452,2]
[356092256,1741894260513,-812.19,0.0001452,2]
[356092257,1741894260532,-500.0,0.0001452,2]
[356092258,1741894260553,-500.0,0.0001452,2]
[356092259,1741894260575,-500.0,0.0001452,2]
[356092260,1741894260596,-500.0,0.0001452,2]
[356092261,1741894260616,-500.0,0.0001452,2]
[356092262,1741894260632,-500.0,0.0001452,2]
[356092263,1741894260649,-500.0,0.0001452,2]
[356092264,1741894260669,-500.0,0.0001452,2]
[356092265,1741894260689,-500.0,0.0001452,2]
[356092266,1741894260705,-500.0,0.0001452,2]
[356092267,1741894260720,-500.0,0.0001452,2]
[356092268,1741894260738,-500.0,0.0001452,2]
[356092269,1741894260754,-500.0,0.0001452,2]
[356092270,1741894260769,-500.0,0.0001452,2]
[356092271,1741894260785,-500.0,0.0001452,2]
[356092272,1741894260802,-530.60391255,0.0001452,2]
[356092273,1741894260819,-500.0,0.0001452,2]
[356092274,1741894260835,-500.0,0.0001452,2]
[356092275,1741894260851,-500.0,0.0001452,2]
[356092276,1741894260867,-500.0,0.0001452,2]
[356092277,1741894260883,-500.0,0.0001452,2]
[356092278,1741894260898,-500.0,0.0001452,2]
[356092279,1741894260913,-500.0,0.0001452,2]
[356092280,1741894260930,-500.0,0.0001452,2]
[356092281,1741894260945,-525.64,0.0001452,2]
[356092282,1741894260961,-500.0,0.0001452,2]
[356092283,1741894260977,-500.0,0.0001452,2]
[356092284,1741894260992,-500.0,0.0001452,2]
[356092285,1741894261007,-1091.78,0.0001452,2]
[356092286,1741894261022,-500.0,0.0001452,2]
[356092287,1741894261038,-1064.34,0.0001452,2]
[356092288,1741894261053,-605.13,0.0001452,2]
[356092289,1741894261069,-500.0,0.0001452,2]
[356092290,1741894261085,-500.0,0.0001452,2]
[356092291,1741894261102,-500.0,0.0001452,2]
[356092292,1741894261118,-500.0,0.0001452,2]
[356092293,1741894261134,-500.0,0.0001452,2]
[356092294,1741894261149,-946.51,0.0001452,2]
[356092295,1741894261164,-500.0,0.0001452,2]
[356092296,1741894261180,-1000.0,0.0001452,2]
[356092297,1741894261196,-500.0,0.0001452,2]
[356092298,1741894261212,-500.0,0.0001452,2]
[356092299,1741894261227,-274.12857843,0.0001452,2]
[356092300,1741894261243,-500.0,0.0001452,2]
[356092301,1741894261258,-500.0,0.0001452,2]
[356092302,1741894261274,-500.0,0.0001452,2]
[356092303,1741894261294,-500.0,0.0001452,2]
[356092304,1741894261312,-500.0,0.0001452,2]
[356092305,1741894261328,-500.0,0.0001452,2]
[356092306,1741894261347,-500.0,0.0001452,2]
[356092307,1741894261363,-478.82809026,0.0001452,2]
[356092308,1741894261380,-2429.74,0.0001452,2]
[356092309,1741894261396,-500.0,0.0001452,2]
[356092310,1741894261412,-1225.1,0.0001452,2]
[356092311,1741894261428,-500.0,0.0001452,2]
[356092312,1741894261444,-915.6,0.0001452,2]
[356092313,1741894261460,-506.50493125,0.0001452,2]
[356092314,1741894261475,-500.0,0.0001452,2]
[356092315,1741894261491,-500.0,0.0001452,2]
[356092316,1741894261507,-580.39369652,0.0001452,2]
[356092317,1741894261523,-500.0,0.0001452,2]
[356092318,1741894261539,-500.0,0.0001452,2]
[356092319,1741894261555,-500.0,0.0001452,2]
[356092320,1741894261571,-500.0,0.0001452,2]
[356092321,1741894261587,-500.0,0.0001452,2]
[356092322,1741894261603,-1567.01,0.0001452,2]
[356092323,1741894261619,-2385.32,0.0001452,2]
[356092324,1741894261634,-500.0,0.0001452,2]
[356092325,1741894261650,-799.23,0.0001452,2]
[356092326,1741894261666,-500.0,0.0001452,2]
[356092327,1741894261682,-500.0,0.0001452,2]
[356092328,1741894261697,-500.0,0.0001452,2]
[356092329,1741894261713,-500.0,0.0001452,2]
[356092330,1741894261728,-961.15,0.0001452,2]
[356092331,1741894261745,-2314.3,0.0001452,2]
[356092332,1741894261761,-3367.72,0.0001452,2]
[356092333,1741894261776,-500.0,0.0001452,2]
[356092334,1741894261792,-500.0,0.0001452,2]
[356092335,1741894261808,-500.0,0.0001452,2]
[356092336,1741894261823,-500.0,0.0001452,2]
[356092337,1741894261840,-500.0,0.0001452,2]
[356092338,1741894261856,-3655.05,0.0001452,2]
[356092339,1741894262087,-2628.92,0.0001452,2]
[356092340,1741894262098,-4239.54,0.0001452,2]
[356092341,1741894262108,-855.11,0.0001452,2]
[356092342,1741894262118,-500.0,0.0001452,2]
[356092343,1741894262128,-844.26,0.0001452,2]
[356092344,1741894262137,-500.0,0.0001452,2]
[356092345,1741894262147,-500.0,0.0001452,2]
[356092346,1741894262157,-500.0,0.0001452,2]
[356092347,1741894262167,-500.0,0.0001452,2]
[356092348,1741894262177,-500.0,0.0001452,2]
[356092349,1741894262186,-14729.94,0.0001452,2]
[356092350,1741894262196,-1094.41,0.0001452,2]
[356092351,1741894262205,-2019.8,0.0001452,2]
[356092352,1741894262215,-1688.66,0.0001452,2]
[356092353,1741894262224,-500.0,0.0001452,2]
[356092354,1741894262234,-500.0,0.0001452,2]
[356092355,1741894262243,-2887.85,0.0001452,2]
[356092356,1741894262252,-500.0,0.0001452,2]
[356092357,1741894262262,-883.44,0.0001452,2]
[356092358,1741894262272,-5717.07,0.0001452,2]
[356092359,1741894262282,-500.0,0.0001452,2]
[356092360,1741894262291,-529.4619268,0.0001452,2]
[356092361,1741894262305,-500.0,0.0001452,2]
[356092362,1741894262314,-500.0,0.0001452,2]
[356092363,1741894262324,-500.0,0.0001452,2]
[356092364,1741894262334,-500.0,0.0001452,2]
[356092365,1741894262345,-867.4,0.0001452,2]
[356092366,1741894262355,-1631.9,0.0001452,2]
[356092367,1741894262364,-693.74,0.0001452,2]
[356092368,1741894262373,-500.0,0.0001452,2]
[356092369,1741894262383,-500.0,0.0001452,2]
[356092370,1741894262393,-500.0,0.0001452,2]
[356092371,1741894262402,-500.0,0.0001452,2]
[356092372,1741894262411,-500.0,0.0001452,2]
[356092373,1741894262421,-500.0,0.0001452,2]
[356092374,1741894262430,-538.45,0.0001452,2]
[356092375,1741894262439,-500.0,0.0001452,2]
[356092376,1741894262449,-500.0,0.0001452,2]
[356092377,1741894262458,-500.0,0.0001452,2]
[356092378,1741894262468,-500.0,0.0001452,2]
[356092379,1741894262478,-579.88901842,0.0001452,2]
[356092380,1741894262488,-500.0,0.0001452,2]
[356092381,1741894262498,-1291.61,0.0001452,2]
[356092382,1741894262507,-1020.5,0.0001452,2]
[356092383,1741894262517,-630.72734018,0.0001452,2]
[356092384,1741894262527,-500.0,0.0001452,2]
[356092385,1741894262536,-500.0,0.0001452,2]
[356092386,1741894262546,-500.0,0.0001452,2]
[356092387,1741894262555,-500.0,0.0001452,2]
[356092388,1741894262565,-500.0,0.0001452,2]
[356092389,1741894262574,-500.0,0.0001452,2]
[356092390,1741894262584,-500.0,0.0001452,2]
[356092391,1741894262593,-500.0,0.0001452,4]
[356092392,1741894262603,-1085.26,0.0001452,2]
[356092393,1741894262612,-500.0,0.0001452,2]
[356092394,1741894262622,-500.0,0.0001452,2]
[356092395,1741894262631,-500.0,0.0001452,2]
[356092396,1741894262641,-500.0,0.0001452,2]
[356092397,1741894262651,-500.0,0.0001452,2]
[356092398,1741894262660,-500.0,0.0001452,2]
[356092399,1741894262670,-500.0,0.0001452,2]
[356092400,1741894262679,-829.71,0.0001452,2]
[356092401,1741894262689,-3663.51,0.0001452,2]
[356092402,1741894262699,-500.0,0.0001452,2]
[356092403,1741894262708,-500.0,0.0001452,2]
[356092404,1741894262718,-766.23,0.0001452,2]
[356092405,1741894262727,-560.51,0.0001452,2]
[356092406,1741894262737,-500.0,0.0001452,2]
[356092407,1741894262747,-1253.74,0.0001452,2]
[356092408,1741894262756,-1603.92,0.0001452,2]
[356092409,1741894262766,-5038.82,0.0001452,2]
[356092410,1741894262775,-500.0,0.0001452,2]
[356092411,1741894262785,-3218.17,0.0001452,2]
[356092412,1741894262794,-500.0,0.0001452,2]
[356092413,1741894262804,-500.0,0.0001452,2]
[356092414,1741894262813,-500.0,0.0001452,2]
[356092415,1741894262823,-500.0,0.0001452,2]
[356092416,1741894262832,-1491.96,0.0001452,2]
[356092417,1741894262842,-500.0,0.0001452,2]
[356092418,1741894262851,-433.96,0.0001452,2]
[356092419,1741894262861,-2264.46,0.0001452,2]
[356092420,1741894262870,-1269.71,0.0001452,2]
[356092421,1741894262880,-500.0,0.0001452,2]
[356092422,1741894262889,-564.596485,0.0001452,2]
[356092423,1741894262899,-500.0,0.0001452,2]
[356092424,1741894262908,-500.0,0.0001452,2]
[356092425,1741894262918,-1760.7,0.0001452,2]
[356092426,1741894262928,-500.0,0.0001452,2]
[356092427,1741894262938,-2664.11,0.0001452,2]
[356092428,1741894262947,-500.0,0.0001452,2]
[356092429,1741894262957,-500.0,0.0001452,2]
[356092430,1741894262967,-500.0,0.0001452,2]
[356092431,1741894262977,-500.0,0.0001452,2]
[356092432,1741894262988,-200.330747,0.0001452,2]
[356092433,1741894262998,-200.330747,0.0001452,2]
[356092434,1741894263008,-500.0,0.0001452,2]
[356092435,1741894263018,-500.0,0.0001452,2]
[356092436,1741894263029,-200.330747,0.0001452,2]
[356092437,1741894263040,-350.97425589,0.0001452,2]
[356092438,1741894263051,-200.330747,0.0001452,2]
[356092439,1741894263061,-980.82,0.0001452,2]
[356092440,1741894263072,-2678.96,0.0001452,2]
[356092441,1741894263085,-3489.38,0.0001452,2]
[356092442,1741894263095,-535.53,0.0001452,2]
[356092443,1741894263106,-2545.77,0.0001452,2]
[356092444,1741894263116,-500.0,0.0001452,2]
[356092445,1741894263127,-500.0,0.0001452,2]
[356092446,1741894263137,-5671.57,0.0001452,2]
[356092447,1741894263147,-500.0,0.0001452,2]
[356092448,1741894263157,-500.0,0.0001452,2]
[356092449,1741894263166,-500.0,0.0001452,2]
[356092450,1741894263176,-500.0,0.0001452,2]
[356092451,1741894263186,-500.0,0.0001452,2]
[356092452,1741894263196,-661.91,0.0001452,2]
[356092453,1741894263206,-1625.38,0.0001452,2]
[356092454,1741894263216,-500.0,0.0001452,2]
[356092455,1741894263226,-500.0,0.0001452,2]
[356092456,1741894263236,-500.0,0.0001452,2]
[356092457,1741894263245,-1103.31,0.0001452,2]
[356092458,1741894263256,-500.0,0.0001452,2]
[356092459,1741894263266,-500.0,0.0001452,2]
[356092460,1741894263276,-500.0,0.0001452,2]
[356092461,1741894263286,-209027.12,0.0001452,2]
[356092462,1741894263296,-500.0,0.0001452,2]
[356092463,1741894263310,-500.0,0.0001452,2]
[356092464,1741894263320,-500.0,0.0001452,2]
[356092465,1741894263330,-500.0,0.0001452,2]
[356092466,1741894263341,-1687.29,0.0001452,2]
[356092467,1741894263352,-1217.41,0.0001452,2]
[356092468,1741894263363,-500.0,0.0001452,2]
[356092469,1741894263372,-732.04,0.0001452,2]
[356092470,1741894263385,-500.0,0.0001452,2]
[356092471,1741894263396,-13853.85,0.0001452,2]
[356092472,1741894263406,-500.0,0.0001452,2]
[356092473,1741894263416,-1965.87,0.0001452,2]
[356092474,1741894263426,-19868.93,0.0001452,2]
[356092475,1741894263437,-4290.07,0.0001452,2]
[356092476,1741894263447,-500.0,0.0001452,2]
[356092477,1741894263457,-500.0,0.0001452,2]
[356092478,1741894263467,-641.75,0.0001452,2]
[356092479,1741894263477,-3029.39,0.0001452,2]
[356092480,1741894263487,-500.0,0.0001452,2]
[356092481,1741894263497,-2172.87,0.0001452,2]
[356092482,1741894263507,-500.0,0.0001452,2]
[356092483,1741894263517,-500.0,0.0001452,2]
[356092484,1741894263527,-500.0,0.0001452,2]
[356092485,1741894263536,-500.0,0.0001452,2]
[356092486,1741894263546,-500.0,0.0001452,2]
[356092487,1741894263556,-500.0,0.0001452,2]
[356092488,1741894263566,-500.0,0.0001452,2]
[356092489,1741894263576,-500.0,0.0001452,2]
[356092490,1741894263587,-500.0,0.0001452,2]
[356092491,1741894263596,-1889.44,0.0001452,2]
[356092492,1741894263607,-500.0,0.0001452,2]
[356092493,1741894263617,-500.0,0.0001452,2]
[356092494,1741894263627,-500.0,0.0001452,2]
[356092495,1741894263637,-337.18692763,0.0001452,2]
[356092496,1741894263646,-3244.72,0.0001452,2]
[356092497,1741894263656,-500.0,0.0001452,2]
[356092498,1741894263665,-500.0,0.0001452,2]
[356092499,1741894263675,-514.8,0.0001452,2]
[356092500,1741894263685,-500.0,0.0001452,2]
[356092501,1741894263695,-500.0,0.0001452,2]
[356092502,1741894263704,-516.59,0.0001452,2]
[356092503,1741894263714,-500.0,0.0001452,2]
[356092504,1741894263723,-500.0,0.0001452,2]
[356092505,1741894263733,-500.0,0.0001452,2]
[356092506,1741894263743,-1053.85,0.0001452,2]
[356092507,1741894263753,-500.0,0.0001452,2]
[356092508,1741894263762,-500.0,0.0001452,2]
[356092509,1741894263772,-500.0,0.0001452,2]
[356092510,1741894263781,-2522.71,0.0001452,2]
[356092511,1741894263791,-500.0,0.0001452,2]
[356092512,1741894263800,-500.0,0.0001452,2]
[356092513,1741894263810,-2188.06,0.0001452,2]
[356092514,1741894263819,-648.13417455,0.0001452,2]
[356092515,1741894263830,-9777.91,0.0001452,2]
[356092516,1741894263841,-415.68232348,0.0001452,2]
[356092517,1741894263852,-8393.77,0.0001452,2]
[356092518,1741894263862,-500.0,0.0001452,2]
[356092519,1741894263872,-500.0,0.0001452,2]
[356092520,1741894263882,-500.0,0.0001452,2]
[356092521,1741894263891,-500.0,0.0001452,2]
[356092522,1741894263901,-500.0,0.0001452,2]
[356092523,1741894263911,-500.0,0.0001452,2]
[356092524,1741894263921,-1528.57,0.0001452,2]
[356092525,1741894263931,-500.0,0.0001452,2]
[356092526,1741894263940,-3229.46,0.0001452,2]
[356092527,1741894263950,-500.0,0.0001452,2]
[356092528,1741894263960,-500.0,0.0001452,2]
[356092529,1741894263970,-500.0,0.0001452,2]
[356092530,1741894263980,-4560.46,0.0001452,2]
[356092531,1741894263990,-607.57573895,0.0001452,2]
[356092532,1741894264000,-500.0,0.0001452,2]
[356092533,1741894264011,-500.0,0.0001452,2]
[356092534,1741894264021,-991.05,0.0001452,2]
[356092535,1741894264031,-500.0,0.0001452,2]
[356092536,1741894264042,-500.0,0.0001452,2]
[356092537,1741894264053,-500.0,0.0001452,2]
[356092538,1741894264064,-500.0,0.0001452,2]
[356092539,1741894264074,-500.0,0.0001452,2]
[356092540,1741894264085,-500.0,0.0001452,2]
[356092541,1741894264096,-668.0,0.0001452,2]
[356092542,1741894264106,-1094.29,0.0001452,2]
[356092543,1741894264116,-500.0,0.0001452,2]
[356092544,1741894264126,-500.0,0.0001452,2]
[356092545,1741894264137,-500.0,0.0001452,2]
[356092546,1741894264147,-500.0,0.0001452,2]
[356092547,1741894264157,-500.0,0.0001452,2]
[356092548,1741894264168,-1101.83,0.0001452,2]
[356092549,1741894264178,-500.0,0.0001452,2]
[356092550,1741894264188,-1356.48,0.0001452,2]
[356092551,1741894264198,-6281.11,0.0001452,2]
[356092552,1741894264208,-2180.55,0.0001452,2]
[356092553,1741894264218,-500.0,0.0001452,2]
[356092554,1741894264228,-500.0,0.0001452,2]
[356092555,1741894264238,-500.0,0.0001452,2]
[356092556,1741894264248,-1225.77,0.0001452,2]
[356092557,1741894264258,-500.0,0.0001452,2]
[356092558,1741894264268,-3824.86,0.0001452,2]
[356092559,1741894264277,-500.0,0.0001452,2]
[356092560,1741894264287,-500.0,0.0001452,2]
[356092561,1741894264298,-500.0,0.0001452,2]
[356092562,1741894264309,-500.0,0.0001452,2]
[356092563,1741894264319,-500.0,0.0001452,2]
[356092564,1741894264329,-378.89912541,0.0001452,2]
[356092565,1741894264345,-500.0,0.0001452,2]
[356092566,1741894264355,-500.0,0.0001452,2]
[356092567,1741894264365,-500.0,0.0001452,2]
[356092568,1741894264377,-610.74,0.0001452,2]
[356092569,1741894264388,-903.73,0.0001452,2]
[356092570,1741894264397,-500.0,0.0001452,2]
[356092571,1741894264407,-3624.01,0.0001452,2]
[356092572,1741894264417,-500.0,0.0001452,2]
[356092573,1741894264427,-500.0,0.0001452,2]
[356092574,1741894264437,-998.75,0.0001452,2]
[356092575,1741894264446,-500.0,0.0001452,2]
[356092576,1741894264457,-2647.29,0.0001452,2]
[356092577,1741894264467,-10382.85,0.0001452,2]
[356092578,1741894264476,-1110.54,0.0001452,2]
[356092579,1741894264487,-1762.61,0.0001452,2]
[356092580,1741894264497,-1041.84,0.0001452,2]
[356092581,1741894264506,-565.16,0.0001452,2]
[356092582,1741894264516,-500.0,0.0001452,2]
[356092583,1741894264527,-500.0,0.0001452,2]
[356092584,1741894264536,-801.16,0.0001452,2]
[356092585,1741894264697,-647.43,0.0001452,2]
[356092586,1741894264708,-500.0,0.0001452,2]
[356092587,1741894264717,-606.89,0.0001452,2]
[356092588,1741894264727,-500.0,0.0001452,2]
[356092589,1741894264736,-445.51444223,0.0001452,2]
[356092590,1741894264746,-500.0,0.0001452,2]
[356092591,1741894264756,-151.0,0.0001452,2]
[356092592,1741894264766,-2366.07,0.0001452,2]
[356092593,1741894264775,-151.0,0.0001452,2]
[356092594,1741894264785,-520.01174161,0.0001452,2]
[356092595,1741894264794,-501.23,0.0001452,2]
[356092596,1741894264804,-500.0,0.0001452,2]
[356092597,1741894264814,-500.0,0.0001452,2]
[356092598,1741894264824,-534.25535556,0.0001452,2]
[356092599,1741894264835,-500.0,0.0001452,2]
[356092600,1741894264844,-2060.16,0.0001452,2]
[356092601,1741894264853,-1000.61,0.0001452,2]
[356092602,1741894264863,-1243.28,0.0001452,2]
[356092603,1741894264872,-500.0,0.0001452,2]
[356092604,1741894264882,-635.67,0.0001452,2]
[356092605,1741894264891,-500.0,0.0001452,2]
[356092606,1741894264901,-1642.03,0.0001452,2]
[356092607,1741894264910,-500.0,0.0001452,2]
[356092608,1741894264919,-1491.71,0.0001452,2]
[356092609,1741894264929,-853.54,0.0001452,2]
[356092610,1741894264938,-500.0,0.0001452,2]
[356092611,1741894264948,-743.31,0.0001452,2]
[356092612,1741894264958,-8475.39,0.0001452,2]
[356092613,1741894264967,-1759.09,0.0001452,2]
[356092614,1741894264976,-1477.61,0.0001452,2]
[356092615,1741894264986,-2198.31,0.0001452,2]
[356092616,1741894264995,-1123.76,0.0001452,2]
[356092617,1741894265005,-500.0,0.0001452,2]
[356092618,1741894265015,-500.0,0.0001452,2]
[356092619,1741894265024,-500.0,0.0001452,2]
[356092620,1741894265034,-732.57,0.0001452,2]
[356092621,1741894265043,-500.0,0.0001452,2]
[356092622,1741894265053,-1157.73,0.0001452,2]
[356092623,1741894265062,-1043.48,0.0001452,2]
[356092624,1741894265071,-500.0,0.0001452,2]